fUSD/lending_fUSD_20240730
["ID","MTS","AMOUNT","RATE_DAILY","PERIOD"]
[333666259,1722324647863,-169.200194,0.00010989,2]
[333666260,1722324647873,-151866.60851969,0.0001099,7]
[333666261,1722324647885,-640.7921642,0.00010993,2]
[333666262,1722324647894,-1159.2008042,0.00010993,2]
[333666263,1722324647904,-7613.5485736,0.00010993,2]
[333666264,1722324647914,-501.34072369,0.00010997,2]
[333666265,1722324647924,-500.0,0.00010997,2]
[333666266,1722324647933,-501.06823289,0.00010997,2]
[333666267,1722324647943,-500.0,0.00010997,2]
[333666268,1722324647952,-500.0,0.00010997,2]
[333666269,1722324647962,-501.15962332,0.00010997,2]
[333666270,1722324647971,-501.0726703,0.00010997,2]
[333666272,1722324647981,-500.87307486,0.00010997,2]
[333666274,1722324647990,-501.25356577,0.00010997,2]
[333666276,1722324647999,-501.07435781,0.00010997,2]
[333666278,1722324648008,-500.0,0.00010997,2]
[333666280,1722324648018,-506.52676815,0.00010997,2]
[333666282,1722324648027,-504.61066226,0.00010997,2]
[333666284,1722324648036,-507.27518161,0.00010997,2]
[333666286,1722324648046,-500.0,0.00010997,2]
[333666288,1722324648055,-504.17711146,0.00010997,2]
[333666290,1722324648065,-500.0,0.00010997,2]
[333666292,1722324648074,-646.45314716,0.00010997,2]
[333666294,1722324648084,-500.38530987,0.00010997,2]
[333666297,1722324648094,-504.06766407,0.00010997,2]
[333666299,1722324648103,-500.0,0.00010997,2]
[333666301,1722324648113,-504.83790944,0.00010997,2]
[333666303,1722324648127,-348.74555211,0.00010997,2]
[333666305,1722324648138,-167.78450969,0.00010997,2]
[333666307,1722324648148,-500.39095681,0.00010997,2]
[333666309,1722324648157,-517.0181401,0.00010997,2]
[333666311,1722324648168,-500.84063626,0.00010997,2]
[333666313,1722324648178,-506.00820476,0.00010998,2]
[333666315,1722324648188,-500.0,0.00010998,2]
[333666317,1722324648199,-500.0,0.00010998,2]
[333666320,1722324648208,-500.0,0.00010998,2]
[333666321,1722324648218,-500.0,0.00010998,2]
[333666322,1722324648228,-500.0,0.00010998,2]
[333666323,1722324648237,-500.0,0.00010998,2]
[333666324,1722324648247,-500.0,0.00010998,2]
[333666325,1722324648256,-500.0,0.00010998,2]
[333666326,1722324648267,-500.0,0.00010998,2]
[333666327,1722324648276,-500.0,0.00010998,2]
[333666328,1722324648286,-500.0,0.00010998,2]
[333666329,1722324648295,-863.33,0.00010998,2]
[333666330,1722324648305,-863.33,0.00010998,2]
[333666331,1722324648314,-863.33,0.00010998,2]
[333666332,1722324648324,-863.33,0.00010998,2]
[333666333,1722324648333,-576.75,0.00010998,2]
[333666334,1722324648343,-863.33,0.00010998,2]
[333666335,1722324648353,-863.33,0.00010998,2]
[333666336,1722324648362,-576.75,0.00010998,2]
[333666337,1722324648372,-576.75,0.00010998,2]
[333666338,1722324648381,-576.75,0.00010998,2]
[333666339,1722324648391,-576.75,0.00010998,2]
[333666340,1722324648400,-576.75,0.00010998,2]
[333666341,1722324648409,-253.11078282,0.00010998,2]
[333666342,1722324648419,-500.0,0.00010998,2]
[333666343,1722324648428,-500.0,0.00010998,2]
[333666344,1722324648438,-500.0,0.00010998,2]
[333666345,1722324648448,-500.0,0.00010998,2]
[333666346,1722324648457,-500.0,0.00010998,2]
[333666347,1722324648467,-500.0,0.00010998,2]
[333666348,1722324648476,-499.99999999,0.00010998,2]
[333666349,1722324648487,-622.97976698,0.00010998,2]
[333666350,1722324648497,-500.0,0.00010998,2]
[333666351,1722324648507,-500.0,0.00010998,2]
[333666352,1722324648516,-500.0,0.00010998,2]
[333666353,1722324648527,-500.0,0.00010998,2]
[333666354,1722324648537,-500.0,0.00010998,2]
[333666355,1722324648546,-551.2,0.00010998,2]
[333666356,1722324648556,-551.2,0.00010998,2]
[333666357,1722324648566,-551.2,0.00010998,2]
[333666358,1722324648576,-551.2,0.00010998,2]
[333666359,1722324648587,-551.2,0.00010998,2]
[333666360,1722324648598,-539.58,0.00010998,2]
[333666361,1722324648609,-539.58,0.00010998,2]
[333666362,1722324648619,-539.58,0.00010998,2]
[333666363,1722324648631,-539.58,0.00010998,2]
[333666364,1722324648642,-539.58,0.00010998,2]
[333666365,1722324648652,-500.0,0.00010998,2]
[333666366,1722324648663,-500.0,0.00010998,2]
[333666367,1722324648672,-500.0,0.00010998,2]
[333666368,1722324648682,-500.0,0.00010998,2]
[333666369,1722324648693,-152.2344419,0.00010998,2]
[333666370,1722324648703,-500.0,0.00010998,2]
[333666371,1722324648713,-500.0,0.00010998,2]
[333666372,1722324648723,-500.0,0.00010998,2]
[333666373,1722324648732,-500.0,0.00010998,2]
[333666374,1722324648742,-500.0,0.00010998,2]
[333666375,1722324648751,-500.0,0.00010998,2]
[333666376,1722324648761,-500.0,0.00010998,2]
[333666377,1722324648770,-382.32773274,0.00010998,2]
[333666378,1722324648780,-500.0,0.00010998,2]
[333666379,1722324648789,-500.0,0.00010998,2]
[333666380,1722324648799,-500.0,0.00010998,2]
[333666381,1722324648808,-500.0,0.00010998,2]
[333666382,1722324648818,-387.33948785,0.00010998,2]
[333666383,1722324648827,-500.0,0.00010998,2]
[333666384,1722324648836,-347.69,0.00010998,2]
[333666385,1722324648846,-500.0,0.00010998,2]
[333666386,1722324648855,-500.0,0.00010998,2]
[333666387,1722324648864,-500.0,0.00010998,2]
[333666388,1722324648875,-500.0,0.00010998,2]
[333666389,1722324648884,-500.0,0.00010998,2]
[333666390,1722324648894,-500.0,0.00010998,2]
[333666391,1722324648903,-500.0,0.00010998,2]
[333666392,1722324648912,-500.0,0.00010998,2]
[333666393,1722324648922,-500.0,0.00010998,2]
[333666394,1722324648931,-500.0,0.00010998,2]
[333666395,1722324648941,-500.0,0.00010998,2]
[333666396,1722324648950,-367.22,0.00010998,2]
[333666397,1722324648960,-500.0,0.00010998,2]
[333666398,1722324648970,-500.0,0.00010998,2]
[333666399,1722324648979,-500.0,0.00010998,2]
[333666400,1722324648989,-500.0,0.00010998,2]
[333666401,1722324648998,-500.0,0.00010998,2]
[333666402,1722324649009,-500.0,0.00010998,2]
[333666403,1722324649018,-500.0,0.00010998,2]
[333666404,1722324649027,-500.0,0.00010998,2]
[333666405,1722324649037,-500.0,0.00010998,2]
[333666406,1722324649046,-500.0,0.00010998,2]
[333666407,1722324649055,-504.07866416,0.00010998,2]
[333666408,1722324649065,-500.0,0.00010998,2]
[333666409,1722324649075,-500.0,0.00010998,2]
[333666410,1722324649084,-500.0,0.00010998,2]
[333666411,1722324649094,-514.46867943,0.00010998,2]
[333666412,1722324649103,-500.0,0.00010998,2]
[333666413,1722324649113,-500.0,0.00010998,2]
[333666414,1722324649125,-511.67390277,0.00010998,2]
[333666415,1722324649139,-500.0,0.00010998,2]
[333666416,1722324649149,-500.0,0.00010998,2]
[333666417,1722324649158,-500.0,0.00010998,2]
[333666418,1722324649168,-516.91754531,0.00010998,2]
[333666419,1722324649179,-500.0,0.00010998,2]
[333666420,1722324649188,-500.0,0.00010998,2]
[333666421,1722324649198,-500.0,0.00010998,2]
[333666422,1722324649210,-500.0,0.00010998,2]
[333666423,1722324649220,-473.92,0.00010998,2]
[333666424,1722324649230,-500.0,0.00010998,2]
[333666425,1722324649241,-500.0,0.00010998,2]
[333666426,1722324649250,-500.0,0.00010998,2]
[333666427,1722324649260,-502.23366979,0.00010998,2]
[333666428,1722324649271,-1738.07,0.00010998,2]
[333666429,1722324649282,-1738.07,0.00010998,2]
[333666430,1722324649293,-1738.07,0.00010998,2]
[333666431,1722324649303,-1738.07,0.00010998,2]
[333666432,1722324649313,-1738.07,0.00010998,2]
[333666433,1722324649375,-1738.07,0.00010998,2]
[333666434,1722324649386,-1738.07,0.00010998,2]
[333666435,1722324649396,-1738.11318773,0.00010998,2]
[333666436,1722324649407,-875.52,0.00010998,2]
[333666437,1722324649417,-875.52,0.00010998,2]
[333666438,1722324649427,-875.52,0.00010998,2]
[333666439,1722324649438,-875.52,0.00010998,2]
[333666440,1722324649448,-875.52,0.00010998,2]
[333666441,1722324649458,-875.52,0.00010998,2]
[333666442,1722324649468,-875.52,0.00010998,2]
[333666443,1722324649478,-875.52,0.00010998,2]
[333666444,1722324649489,-875.52,0.00010998,2]
[333666445,1722324649499,-875.5868,0.00010998,2]
[333666446,1722324649511,-500.0,0.00010998,2]
[333666447,1722324649522,-500.0,0.00010998,2]
[333666448,1722324649532,-500.0,0.00010998,2]
[333666449,1722324649542,-500.0,0.00010998,2]
[333666450,1722324649552,-274.94617986,0.00010998,2]
[333666451,1722324649563,-500.0,0.00010999,2]
[333666452,1722324649575,-503.45847339,0.00010999,2]
[333666453,1722324649587,-502.74282311,0.00010999,2]
[333666454,1722324649598,-500.0,0.00010999,2]
[333666455,1722324649608,-500.0,0.00010999,2]
[333666456,1722324649617,-500.0,0.00010999,2]
[333666457,1722324649628,-500.0,0.00010999,2]
[333666458,1722324649638,-241.54893521,0.00010999,2]
[333666459,1722324649648,-453.80117407,0.00010999,2]
[333666460,1722324649658,-368.57109975,0.00010999,2]
[333666461,1722324649667,-500.0,0.00010999,2]
[333666462,1722324649676,-500.0,0.00010999,2]
[333666463,1722324649686,-500.0,0.00010999,2]
[333666464,1722324649696,-500.0,0.00010999,2]
[333666465,1722324649705,-252.95328689,0.00010999,2]
[333666466,1722324649715,-500.0,0.00010999,2]
[333666467,1722324649725,-500.0,0.00010999,2]
[333666468,1722324649734,-500.0,0.00010999,2]
[333666469,1722324649744,-312.85947976,0.00010999,2]
[333666470,1722324649753,-399.95419258,0.00010999,2]
[333666471,1722324649763,-503.18389182,0.00010999,2]
[333666472,1722324649773,-500.0,0.00010999,2]
[333666473,1722324649783,-276.95665704,0.00010999,2]
[333666474,1722324649793,-405.52820688,0.00010999,2]
[333666475,1722324649804,-190.50377157,0.00010999,2]
[333666476,1722324649814,-500.0,0.00010999,2]
[333666477,1722324649825,-500.0,0.00010999,2]
[333666478,1722324649835,-500.0,0.00010999,2]
[333666479,1722324649845,-1310433.0688466,0.00010999,2]
[333666480,1722324649855,-500.0,0.00010999,2]
[333666481,1722324649866,-500.0,0.00010999,2]
[333666482,1722324649877,-500.0,0.00010999,2]
[333666483,1722324649888,-400.28282481,0.00010999,2]
[333666484,1722324649899,-500.0,0.00010999,2]
[333666485,1722324649911,-510.95125233,0.00010999,2]
[333666486,1722324649922,-500.0,0.00010999,2]
[333666487,1722324649933,-500.0,0.00010999,2]
[333666488,1722324649944,-500.0,0.00010999,2]
[333666489,1722324649955,-500.0,0.00010999,2]
[333666490,1722324649967,-516.16280669,0.00010999,2]
[333666491,1722324649978,-500.0,0.00010999,2]
[333666492,1722324649988,-500.0,0.00010999,2]
[333666493,1722324649999,-515.21939928,0.00010999,2]
[333666494,1722324650010,-551.35542796,0.00010999,2]
[333666495,1722324650021,-505.53589466,0.00010999,2]
[333666496,1722324650031,-512.16592907,0.00010999,2]
[333666497,1722324650041,-571.90149488,0.00010999,2]
[333666498,1722324650052,-524.16213249,0.00010999,2]
[333666499,1722324650062,-510.31753262,0.00010999,2]
[333666500,1722324650073,-512.20271129,0.00010999,2]
[333666501,1722324650083,-513.12980533,0.00010999,2]
[333666502,1722324650093,-500.0,0.00010999,2]
[333666503,1722324650104,-502.67549227,0.00010999,2]
[333666504,1722324650114,-500.0,0.00010999,2]
[333666505,1722324650128,-500.0,0.00010999,2]
[333666506,1722324650141,-500.0,0.00010999,2]
[333666507,1722324650150,-500.0,0.00010999,2]
[333666508,1722324650162,-500.0,0.00010999,2]
[333666509,1722324650174,-500.0,0.00010999,2]
[333666510,1722324650184,-575.94683732,0.00010999,2]
[333666511,1722324650195,-863.33,0.00010999,2]
[333666512,1722324650207,-863.33,0.00010999,2]
[333666513,1722324650217,-863.33,0.00010999,2]
[333666514,1722324650227,-863.33,0.00010999,2]
[333666515,1722324650237,-863.33,0.00010999,2]
[333666516,1722324650246,-576.75,0.00010999,2]
[333666517,1722324650257,-863.33,0.00010999,2]
[333666518,1722324650268,-576.75,0.00010999,2]
[333666519,1722324650277,-576.75,0.00010999,2]
[333666520,1722324650287,-863.33,0.00010999,2]
[333666521,1722324650299,-576.75,0.00010999,2]
[333666522,1722324650310,-576.75,0.00010999,2]
[333666523,1722324650321,-863.33,0.00010999,2]
[333666524,1722324650332,-863.33,0.00010999,2]
[333666525,1722324650343,-863.33,0.00010999,2]
[333666526,1722324650353,-576.75,0.00010999,2]
[333666527,1722324650363,-863.33,0.00010999,2]
[333666528,1722324650376,-576.75,0.00010999,2]
[333666529,1722324650386,-863.33,0.00010999,2]
[333666530,1722324650397,-576.75,0.00010999,2]
[333666531,1722324650408,-863.33,0.00010999,2]
[333666532,1722324650418,-863.33,0.00010999,2]
[333666533,1722324650428,-863.46968591,0.00010999,2]
[333666534,1722324650439,-576.75,0.00010999,2]
[333666535,1722324650450,-576.75,0.00010999,2]
[333666536,1722324650460,-576.75,0.00010999,2]
[333666537,1722324650469,-576.75,0.00010999,2]
[333666538,1722324650479,-576.75,0.00010999,2]
[333666539,1722324650489,-576.75,0.00010999,2]
[333666540,1722324650499,-576.97,0.00010999,2]
[333666541,1722324650511,-500.0,0.00010999,2]
[333666542,1722324650522,-500.0,0.00010999,2]
[333666543,1722324650533,-500.0,0.00010999,2]
[333666544,1722324650543,-500.0,0.00010999,2]
[333666545,1722324650554,-535.49465266,0.00010999,2]
[333666546,1722324650565,-500.0,0.00010999,2]
[333666547,1722324650575,-500.0,0.00010999,2]
[333666548,1722324650585,-500.0,0.00010999,2]
[333666549,1722324650595,-500.0,0.00010999,2]
[333666550,1722324650606,-500.0,0.00010999,2]
[333666551,1722324650616,-551.2,0.00010999,2]
[333666552,1722324650628,-551.2,0.00010999,2]
[333666553,1722324650639,-551.2,0.00010999,2]
[333666554,1722324650649,-551.2,0.00010999,2]
[333666555,1722324650660,-551.2,0.00010999,2]
[333666556,1722324650670,-551.2,0.00010999,2]
[333666557,1722324650679,-551.2,0.00010999,2]
[333666558,1722324650689,-551.2,0.00010999,2]
[333666559,1722324650699,-551.2,0.00010999,2]
[333666560,1722324650709,-551.2,0.00010999,2]
[333666561,1722324650719,-551.2,0.00010999,2]
[333666562,1722324650729,-551.2,0.00010999,2]
[333666563,1722324650738,-551.2,0.00010999,2]
[333666564,1722324650748,-551.2,0.00010999,2]
[333666565,1722324650758,-551.42,0.00010999,2]
[333666566,1722324650767,-539.58,0.00010999,2]
[333666567,1722324650776,-539.58,0.00010999,2]
[333666568,1722324650786,-539.58,0.00010999,2]
[333666569,1722324650796,-539.58,0.00010999,2]
[333666570,1722324650806,-539.58,0.00010999,2]
[333666571,1722324650816,-539.58,0.00010999,2]
[333666572,1722324650826,-539.58,0.00010999,2]
[333666573,1722324650835,-539.58,0.00010999,2]
[333666574,1722324650845,-539.58,0.00010999,2]
[333666575,1722324650854,-539.58,0.00010999,2]
[333666576,1722324650864,-539.58,0.00010999,2]
[333666577,1722324650876,-539.58,0.00010999,2]
[333666578,1722324650886,-539.58,0.00010999,2]
[333666579,1722324650895,-539.58,0.00010999,2]
[333666580,1722324650905,-539.61699994,0.00010999,2]
[333666581,1722324650914,-500.0,0.00010999,2]
[333666582,1722324650923,-548.28,0.00010999,2]
[333666583,1722324650932,-500.0,0.00010999,2]
[333666584,1722324650941,-645.76,0.00010999,2]
[333666585,1722324650951,-489906.86049752,0.00011,2]
[333666586,1722324650960,-3000.0,0.00011,2]
[333666587,1722324650970,-4821135.85815082,0.00011,2]
[333666588,1722324651195,-588.950825,0.00011,2]
[333666589,1722324651209,-673.67079095,0.00011,2]
[333666590,1722324651221,-5223.50392506,0.00011,2]
[333666591,1722324651246,-5776.08925549,0.00011,2]
[333666592,1722324651343,-426.26005495,0.0001027,2]
[333666593,1722324651353,-120.44494508,0.00010796,2]
[333666594,1722324651365,-2280.92405492,0.00010796,2]
[333666595,1722324651378,-134.33811014,0.00011,2]
[333666596,1722324651396,-953795.35390451,0.00011,2]
[333666597,1722324651408,-6689.61292564,0.00011,2]
[333666598,1722324651420,-917.35,0.00011,2]
[333666599,1722324651586,-802.30355537,8.597e-05,2]
[333666600,1722324651596,-246.7110666,0.000104,2]
[333666601,1722324651606,-2955.65847089,0.00011,2]
[333666602,1722324651618,-200992.59830537,0.00011,2]
[333666603,1722324651634,-308.21678234,0.00011,2]
[333666604,1722324651645,-307.9234112,0.00011,2]
[333666605,1722324651666,-386.34527195,0.00011,2]
[333666606,1722324651678,-16249.20454231,0.00011,2]
[333666822,1722325831567,-855.0,8.218e-05,2]
[333666823,1722325831577,-84.85071278,8.219e-05,2]
[333666824,1722325831589,-717.45284259,8.219e-05,2]
[333666825,1722325831599,-682.67,8.219e-05,2]
[333666826,1722325831609,-160.5,8.219e-05,2]
[333666827,1722325831618,-439.37715741,9.552e-05,2]
[333666828,1722325831724,-806.77598637,9.552e-05,2]
[333666829,1722325831832,-2114.71810621,9.552e-05,2]
[333666830,1722325831844,-250.0,9.552e-05,2]
[333666831,1722325831855,-562.4996314,9.552e-05,2]
[333666836,1722325837485,-541.830076,9.552e-05,2]
[333666840,1722325837544,-19164.79904261,9.552e-05,2]
[333666841,1722325837555,-250.0,9.581e-05,2]
[333666842,1722325837564,-257.2,9.597e-05,2]
[333666843,1722325837574,-244.19,9.626e-05,2]
[333666844,1722325837584,-480.0,9.795e-05,2]
[333666845,1722325837594,-1852.42,9.795e-05,2]
[333666846,1722325837604,-16914.43,9.83e-05,2]
[333666847,1722325837614,-285.68,9.83e-05,2]
[333666848,1722325837624,-200.0,9.838e-05,2]
[333666849,1722325837633,-153.57996655,9.888e-05,2]
[333666850,1722325837643,-170.89,9.895e-05,2]
[333666851,1722325837652,-520.0,0.00010035,2]
[333666852,1722325837662,-150.99,0.00010062,2]
[333666853,1722325837671,-179.63,0.00010172,2]
[333666854,1722325837681,-156.4355,0.000104,2]
[333666855,1722325837690,-499.99,0.000104,2]
[333666856,1722325837700,-682.67,0.00010453,2]
[333666857,1722325837709,-1000.0,0.000105,2]
[333666858,1722325837719,-150.0,0.00010505,2]
[333666859,1722325837729,-1061.13776614,0.0001078,2]
[333666860,1722325837738,-23440.78630092,0.00010786,2]
[333666861,1722325837748,-204.992,0.00010796,2]
[333666862,1722325837757,-5119.0,0.00010796,2]
[333666863,1722325837767,-150.0,0.00010796,2]
[333666864,1722325837776,-150.0,0.00010796,2]
[333666865,1722325837786,-1202.0,0.00010796,2]
[333666866,1722325837795,-1669.0,0.00010796,2]
[333666867,1722325837804,-5621.962,0.00010796,2]
[333666868,1722325837814,-5824.0,0.00010796,2]
[333666869,1722325837822,-1072.0,0.00010796,2]
[333666870,1722325837832,-10000.0,0.00010858,2]
[333666871,1722325837842,-150.8736,0.00010879,2]
[333666872,1722325837851,-163.48843547,0.00010899,2]
[333666873,1722325837861,-30058.6576,0.000109,2]
[333666875,1722325837870,-4968.44734192,0.000109,2]
[333666877,1722325837883,-374.94082365,0.000109,2]
[333666879,1722325837895,-2156.61183443,0.000109,2]
[333666881,1722325837905,-315.4263,0.000109,2]
[333666883,1722325837915,-163.48843547,0.000109,2]
[333666885,1722325837925,-500.0,0.00010912,2]
[333666886,1722325837935,-500.0,0.00010958,2]
[333666888,1722325837945,-500.0,0.00010958,2]
[333666890,1722325837956,-154.1455,0.00010958,2]
[333666892,1722325837967,-500.0,0.00010958,2]
[333666893,1722325837976,-500.0,0.00010958,2]
[333666894,1722325837986,-500.0,0.00010958,2]
[333666895,1722325837997,-500.0,0.00010958,2]
[333666896,1722325838007,-500.0,0.00010958,2]
[333666897,1722325838017,-407.99461511,0.00010958,2]
[333666898,1722325838027,-500.0,0.00010958,2]
[333666899,1722325838036,-500.0,0.00010958,2]
[333666900,1722325838046,-565.42924443,0.00010958,2]
[333666901,1722325838056,-412.14185051,0.00010958,2]
[333666902,1722325838066,-387.02289021,0.00010958,2]
[333666903,1722325838077,-500.0,0.00010958,2]
[333666905,1722325838087,-500.0,0.00010958,2]
[333666906,1722325838096,-500.0,0.00010958,2]
[333666907,1722325838106,-287.55122626,0.00010958,2]
[333666908,1722325838115,-500.0,0.00010958,2]
[333666909,1722325838124,-500.0,0.00010958,2]
[333666910,1722325838134,-500.0,0.00010958,2]
[333666911,1722325838143,-289.94877375,0.00010958,2]
[333666912,1722325838152,-279.35194673,0.00010958,2]
[333666913,1722325838161,-500.0,0.00010958,2]
[333666914,1722325838171,-620.73070001,0.00010958,2]
[333666915,1722325838180,-500.0,0.00010958,2]
[333666916,1722325838189,-392.92,0.00010958,2]
[333666917,1722325838199,-500.0,0.00010958,2]
[333666918,1722325838208,-360.42,0.00010958,2]
[333666919,1722325838218,-500.0,0.00010958,2]
[333666920,1722325838227,-279.78,0.00010958,2]
[333666921,1722325838236,-500.0,0.00010958,2]
[333666922,1722325838245,-500.0,0.00010958,2]
[333666923,1722325838255,-500.0,0.00010958,2]
[333666924,1722325838264,-500.0,0.00010958,2]
[333666925,1722325838274,-500.0,0.00010958,2]
[333666926,1722325838282,-500.0,0.00010958,2]
[333666927,1722325838292,-225.38,0.00010958,2]
[333666928,1722325838303,-500.0,0.00010958,2]
[333666929,1722325838312,-500.0,0.00010958,2]
[333666930,1722325838321,-500.0,0.00010958,2]
[333666931,1722325838333,-500.0,0.00010958,2]
[333666932,1722325838343,-500.0,0.00010958,2]
[333666933,1722325838352,-500.0,0.00010958,2]
[333666934,1722325838361,-380.0,0.00010958,2]
[333666935,1722325838370,-3080.33,0.00010958,2]
[333666936,1722325838379,-500.0,0.00010958,2]
[333666937,1722325838388,-256.25,0.00010958,2]
[333666938,1722325838399,-500.0,0.00010958,2]
[333666939,1722325838409,-500.0,0.00010958,2]
[333666940,1722325838419,-500.0,0.00010958,2]
[333666941,1722325838430,-429.51,0.00010958,2]
[333666942,1722325838441,-500.0,0.00010958,2]
[333666943,1722325838451,-500.0,0.00010958,2]
[333666944,1722325838463,-500.0,0.00010958,2]
[333666945,1722325838474,-500.0,0.00010958,2]
[333666946,1722325838484,-500.0,0.00010958,2]
[333666947,1722325838494,-500.0,0.00010958,2]
[333666948,1722325838503,-500.0,0.00010958,2]
[333666949,1722325838517,-531.92430987,0.00010958,2]
[333666950,1722325838526,-516.82351311,0.00010958,2]
[333666951,1722325838535,-524.96987206,0.00010958,2]
[333666952,1722325838545,-500.0,0.00010958,2]
[333666953,1722325838557,-519.64740057,0.00010958,2]
[333666954,1722325838566,-538.89143279,0.00010958,2]
[333666955,1722325838575,-500.0,0.00010958,2]
[333666956,1722325838585,-500.0,0.00010958,2]
[333666957,1722325838595,-500.0,0.00010958,2]
[333666958,1722325838605,-500.0,0.00010958,2]
[333666959,1722325838614,-500.0,0.00010958,2]
[333666960,1722325838623,-624.46,0.00010958,2]
[333666961,1722325838632,-599.48,0.00010958,2]
[333666962,1722325838641,-444.59836794,0.00010958,2]
[333666963,1722325838651,-302.55114643,0.00010958,2]
[333666964,1722325838660,-500.0,0.00010958,2]
[333666965,1722325838670,-640.01,0.00010958,2]
[333666966,1722325838680,-309.19015109,0.00010958,2]
[333666967,1722325838689,-500.0,0.00010958,2]
[333666968,1722325838698,-500.0,0.00010958,2]
[333666969,1722325838707,-500.0,0.00010958,2]
[333666970,1722325838716,-500.0,0.00010958,2]
[333666971,1722325838726,-500.0,0.00010958,2]
[333666972,1722325838735,-500.0,0.00010958,2]
[333666973,1722325838745,-500.0,0.00010958,2]
[333666974,1722325838754,-524.62469659,0.00010958,2]
[333666975,1722325838764,-504.64516533,0.00010958,2]
[333666976,1722325838774,-518.99,0.00010958,2]
[333666977,1722325838783,-500.0,0.00010958,2]
[333666978,1722325838793,-597.01,0.00010958,2]
[333666979,1722325838803,-254.53450933,0.00010958,2]
[333666980,1722325838812,-500.0,0.00010958,2]
[333666981,1722325838822,-500.0,0.00010958,2]
[333666982,1722325838833,-500.0,0.00010958,2]
[333666983,1722325838842,-500.0,0.00010958,2]
[333666984,1722325838851,-500.0,0.00010958,2]
[333666985,1722325838861,-500.0,0.00010958,2]
[333666986,1722325838870,-616.54260745,0.00010958,2]
[333666987,1722325838879,-500.0,0.00010958,2]
[333666988,1722325838888,-551.75,0.00010958,2]
[333666989,1722325838898,-500.0,0.00010958,2]
[333666990,1722325838907,-522.79,0.00010958,2]
[333666991,1722325838916,-500.0,0.00010958,2]
[333666992,1722325838926,-500.0,0.00010958,2]
[333666993,1722325838935,-500.0,0.00010958,2]
[333666994,1722325838945,-500.0,0.00010958,2]
[333666995,1722325838954,-500.0,0.00010958,2]
[333666996,1722325838966,-500.0,0.00010958,2]
[333666997,1722325838976,-503.97817144,0.00010958,2]
[333666998,1722325838987,-579.72,0.00010958,2]
[333666999,1722325838998,-609.14,0.00010958,2]
[333667000,1722325839008,-500.0,0.00010958,2]
[333667001,1722325839020,-309.15079198,0.00010958,2]
[333667002,1722325839030,-343.15,0.00010958,2]
[333667003,1722325839039,-334.14,0.00010958,2]
[333667004,1722325839051,-416.65218062,0.00010958,2]
[333667005,1722325839061,-500.0,0.00010958,2]
[333667006,1722325839071,-511.95175792,0.00010958,2]
[333667007,1722325839080,-502.58844937,0.00010958,2]
[333667008,1722325839089,-500.0,0.00010958,2]
[333667009,1722325839099,-507.39767328,0.00010958,2]
[333667010,1722325839108,-505.95493701,0.00010958,2]
[333667011,1722325839117,-200.0,0.00010959,2]
[333667012,1722325839126,-250.0,0.00010959,2]
[333667013,1722325839136,-223.82,0.00010959,2]
[333667014,1722325839146,-1122.02426798,0.00010997,2]
[333667015,1722325839156,-1286.76550539,0.00010999,2]
[333667016,1722325839165,-546.16832706,0.00010999,2]